{"text_format":"1","workbook":"xlsx","n_sheets":7,"sheets":["Реестр","Участие в проекте","Данные за 2021 г","Кто рисует","Лист1","Лист2","Лист3"],"not_rendered":{"charts":0,"images":1,"macros":1,"external_links":0,"defined_names":9,"comments":0,"pivot_tables":0},"unopened":[],"bounds":{"document_bytes":16777216,"sheet_cells":100000,"rows_first":2000,"rows_last":500,"rows_between":2000,"halvings":0,"cell_chars":16384,"cell_head_chars":4096},"cells_cut":0,"cells_raw":0,"read":"whole","date_system":"1900"}

{"sheet":"Реестр","index":0,"n_rows":34,"n_cols":15,"rows_kept":34,"cut":false,"hidden":false,"merged":[]}
[" SAP завода","Номер магазина","Полный адрес","Кластер","Тип запроса","Краткое описание изменений (через запятую)","KPI (обоснование) проекта ","Территория","ID","ID 2","Дата поступления","Крайний срок выполнения","Дата отправки на Согласование","Дата Согласования","Дата пргогрузка на PLG"]
[4547,4470,"МО","Кластер Волга-Север 08 Иваново Север","прорисовка оборудования","прорисовать стеллаж","доп  место ","ВС-1","2№4547","2№4547","2020-06-30",{"$f":"IF(Реестр!$K2<>\"\",Реестр!$K2+30,\"\")","v":"2020-07-30"},"2020-07-06","2020-07-06","2020-07-07"]
["Q980",7565,"МО","Кластер Волга-Север 16 Северодвинск","прорисовка оборудования","прорисовать стеллаж","доп  место ","ВС-2","3№Q980","3№Q980","2020-06-30",{"$f":"IF(Реестр!$K3<>\"\",Реестр!$K3+30,\"\")","v":"2020-07-30"},"2020-07-07","2020-07-14","2020-08-22"]
[3991,2225,"МО","Кластер Волга-Север 22 Семеновский","прорисовка оборудования","прорисовать стеллаж","доп  место ","ВС-3","4№3991","4№3991","2020-06-30",{"$f":"IF(Реестр!$K4<>\"\",Реестр!$K4+30,\"\")","v":"2020-07-30"},"2020-07-03","2020-07-13"]
["30ZB",19666,"МО","Кластер Волга-Север 02 Вологда","прорисовка оборудования","прорисовать стеллаж","доп  место ","ВС-1","5№30ZB","5№30ZB","2020-07-07",{"$f":"IF(Реестр!$K5<>\"\",Реестр!$K5+30,\"\")","v":"2020-08-06"},"2020-07-09","2020-07-13","2020-10-24"]
["398C",18802,"МО","Кластер Волга-Север 17 Дзержинск","прорисовка оборудования","прорисовать стеллаж","доп  место ","ВС-3","6№398C","6№398C","2020-07-07",{"$f":"IF(Реестр!$K6<>\"\",Реестр!$K6+30,\"\")","v":"2020-08-06"},"2020-07-23","2020-07-24","2020-08-15"]
[5273,461,"МО","Кластер Волга-Север 06 Рыбинск","прорисовка оборудования","прорисовать стеллаж","доп  место ","ВС-1","7№5273","7№5273","2020-07-07",{"$f":"IF(Реестр!$K7<>\"\",Реестр!$K7+30,\"\")","v":"2020-08-06"},"2020-07-21"]
["O760",15847,"МО","Кластер Волга-Север 06 Рыбинск","прорисовка оборудования","прорисовать стеллаж","доп  место ","ВС-1","8№O760","8№O760","2020-07-07",{"$f":"IF(Реестр!$K8<>\"\",Реестр!$K8+30,\"\")","v":"2020-08-06"},null,null,"2020-07-10"]
[6665,1347,"МО","Кластер Волга-Север 06 Рыбинск","прорисовка оборудования","прорисовать стеллаж","доп  место ","ВС-1","9№6665","9№6665","2020-07-07",{"$f":"IF(Реестр!$K9<>\"\",Реестр!$K9+30,\"\")","v":"2020-08-06"},"2020-11-03","2020-11-03","2020-11-07"]
[6665,1347,"МО","Кластер Волга-Север 06 Рыбинск","прорисовка оборудования","прорисовать стеллаж","доп  место ","ВС-1","10№6665","10№6665","2020-07-07",{"$f":"IF(Реестр!$K10<>\"\",Реестр!$K10+30,\"\")","v":"2020-08-06"}]
[6665,1347,"МО","Кластер Волга-Север 06 Рыбинск","прорисовка оборудования","прорисовать стеллаж","доп  место ","ВС-1","11№6665","11№6665","2020-07-07",{"$f":"IF(Реестр!$K11<>\"\",Реестр!$K11+30,\"\")","v":"2020-08-06"},null,null,"2020-07-11"]
[6665,1347,"МО","Кластер Волга-Север 06 Рыбинск","прорисовка оборудования","прорисовать стеллаж","доп  место ","ВС-1","12№6665","12№6665","2020-07-07",{"$f":"IF(Реестр!$K12<>\"\",Реестр!$K12+30,\"\")","v":"2020-08-06"},null,null,"2020-07-11"]
[464,5153,153,"Кластер Волга-Север 05 Александров","Закупочная компания",151,13,null,"13№464","13№464","2021-03-06T16:27:58",{"$f":"IF(Реестр!$K13<>\"\",Реестр!$K13+30,\"\")","v":"2021-04-05T16:27:58"}]
[null,null,null,null,null,null,null,null,null,null,null,{"$f":"IF(Реестр!$K14<>\"\",Реестр!$K14+30,\"\")","v":""}]
[null,null,null,null,null,null,null,null,null,null,null,{"$f":"IF(Реестр!$K15<>\"\",Реестр!$K15+30,\"\")","v":""}]
[null,null,null,null,null,null,null,null,null,null,null,{"$f":"IF(Реестр!$K16<>\"\",Реестр!$K16+30,\"\")","v":""}]
[null,null,null,null,null,null,null,null,null,null,null,{"$f":"IF(Реестр!$K17<>\"\",Реестр!$K17+30,\"\")","v":""}]
[null,null,null,null,null,null,null,null,null,null,null,{"$f":"IF(Реестр!$K18<>\"\",Реестр!$K18+30,\"\")","v":""}]
[null,null,null,null,null,null,null,null,null,null,null,{"$f":"IF(Реестр!$K19<>\"\",Реестр!$K19+30,\"\")","v":""}]
[null,null,null,null,null,null,null,null,null,null,null,{"$f":"IF(Реестр!$K20<>\"\",Реестр!$K20+30,\"\")","v":""}]
[null,null,null,null,null,null,null,null,null,null,null,{"$f":"IF(Реестр!$K21<>\"\",Реестр!$K21+30,\"\")","v":""}]
[null,null,null,null,null,null,null,null,null,null,null,{"$f":"IF(Реестр!$K22<>\"\",Реестр!$K22+30,\"\")","v":""}]
[null,null,null,null,null,null,null,null,null,null,null,{"$f":"IF(Реестр!$K23<>\"\",Реестр!$K23+30,\"\")","v":""}]
[null,null,null,null,null,null,null,null,null,null,null,{"$f":"IF(Реестр!$K24<>\"\",Реестр!$K24+30,\"\")","v":""}]
[null,null,null,null,null,null,null,null,null,null,null,{"$f":"IF(Реестр!$K25<>\"\",Реестр!$K25+30,\"\")","v":""}]
[null,null,null,null,null,null,null,null,null,null,null,{"$f":"IF(Реестр!$K26<>\"\",Реестр!$K26+30,\"\")","v":""}]
[]
[]
[]
[]
[]
[]
[]
[null,null,null,null,null,{"$f":"COUNTIFS(A:A,#REF!,K:K,#REF!)","v":0}]

{"sheet":"Участие в проекте","index":1,"n_rows":125,"n_cols":3,"rows_kept":125,"cut":false,"hidden":true,"merged":[]}
["№ магазина","Код в SAP","Проект"]
[13991,"E457","Реалокатор 2020"]
[14292,"E430","Реалокатор 2020"]
[13877,"E143","Реалокатор 2020"]
[13834,"H981","Реалокатор 2020"]
[13955,"E141","Реалокатор 2020"]
[13241,"H353","Реалокатор 2020"]
[13292,"H963","Реалокатор 2020"]
[10065,"H309","Реалокатор 2020"]
[13074,"H395","Реалокатор 2020"]
[12719,"Y923","Реалокатор 2020"]
[12168,"Y838","Реалокатор 2020"]
[7845,"G238","Реалокатор 2020"]
[10719,"Y937","Реалокатор 2020"]
[12723,"Y877","Реалокатор 2020"]
[9957,"S402","Реалокатор 2020"]
[12485,"Y410","Реалокатор 2020"]
[12153,"Y140","Реалокатор 2020"]
[10645,"X053","Реалокатор 2020"]
[12357,"Y327","Реалокатор 2020"]
[11933,"X842","Реалокатор 2020"]
[9311,"J368","Реалокатор 2020"]
[11363,"X265","Реалокатор 2020"]
[11112,"X003","Реалокатор 2020"]
[9315,"S775","Реалокатор 2020"]
[9233,"J229","Реалокатор 2020"]
[9850,"S265","Реалокатор 2020"]
[8741,"Y053","Реалокатор 2020"]
[9666,"J934","Реалокатор 2020"]
[8558,"J393","Реалокатор 2020"]
[10280,"J910","Реалокатор 2020"]
[8659,"J791","Реалокатор 2020"]
[6983,"Q354","Реалокатор 2020"]
[7349,"Q735","Реалокатор 2020"]
[9140,"J362","Реалокатор 2020"]
[9483,"J602","Реалокатор 2020"]
[10086,"J544","Реалокатор 2020"]
[7799,"G227","Реалокатор 2020"]
[8695,"J207","Реалокатор 2020"]
[7580,"Q988","Реалокатор 2020"]
[8969,"J211","Реалокатор 2020"]
[8522,"G778","Реалокатор 2020"]
[8130,"G494","Реалокатор 2020"]
[9028,"G530","Реалокатор 2020"]
[7347,"Q733","Реалокатор 2020"]
[8269,"G553","Реалокатор 2020"]
[8039,"G415","Реалокатор 2020"]
[8356,"G687","Реалокатор 2020"]
[8046,"G526","Реалокатор 2020"]
[9036,"G515","Реалокатор 2020"]
[7810,"G475","Реалокатор 2020"]
[7081,"Q465","Реалокатор 2020"]
[7916,"G295","Реалокатор 2020"]
[7895,"G272","Реалокатор 2020"]
[7853,"G248","Реалокатор 2020"]
[7345,"Q731","Реалокатор 2020"]
[3692,"Q850","Реалокатор 2020"]
[7517,"Q917","Реалокатор 2020"]
[7548,"Q937","Реалокатор 2020"]
[7389,"Q781","Реалокатор 2020"]
[7086,"Q470","Реалокатор 2020"]
[7090,"Q474","Реалокатор 2020"]
[7071,"Q455","Реалокатор 2020"]
[6880,"Q290","Реалокатор 2020"]
[7016,"Q416","Реалокатор 2020"]
[7059,"Q491","Реалокатор 2020"]
[6832,"Q224","Реалокатор 2020"]
[6461,"Q218","Реалокатор 2020"]
[6550,"L885","Реалокатор 2020"]
[6587,"L937","Реалокатор 2020"]
[6516,"L822","Реалокатор 2020"]
[6386,"L657","Реалокатор 2020"]
[6448,"L857","Реалокатор 2020"]
[6470,"L853","Реалокатор 2020"]
[6227,"L524","Реалокатор 2020"]
[6235,"L474","Реалокатор 2020"]
[5522,4676,"Реалокатор 2020"]
[5364,4442,"Реалокатор 2020"]
[5255,4167,"Реалокатор 2020"]
[5007,3455,"Реалокатор 2020"]
[4496,3810,"Реалокатор 2020"]
[3529,9826,"Реалокатор 2020"]
[4551,3502,"Реалокатор 2020"]
[4419,9841,"Реалокатор 2020"]
[4391,"X005","Реалокатор 2020"]
[4092,9825,"Реалокатор 2020"]
[3696,9802,"Реалокатор 2020"]
[3557,"J957","Реалокатор 2020"]
[2880,4056,"Реалокатор 2020"]
[3544,"Q592","Реалокатор 2020"]
[3130,"L711","Реалокатор 2020"]
[3435,9153,"Реалокатор 2020"]
[1910,8938,"Реалокатор 2020"]
[3340,"G798","Реалокатор 2020"]
[3244,"J961","Реалокатор 2020"]
[3247,4322,"Реалокатор 2020"]
[10002,"J152","Реалокатор 2020"]
[2381,8588,"Реалокатор 2020"]
[1845,3556,"Реалокатор 2020"]
[2469,3571,"Реалокатор 2020"]
[1992,"J964","Реалокатор 2020"]
[1990,4317,"Реалокатор 2020"]
[1620,"G797","Реалокатор 2020"]
[8633,6939,"Реалокатор 2020"]
[634,6778,"Реалокатор 2020"]
[8563,6797,"Реалокатор 2020"]
[8258,6952,"Реалокатор 2020"]
[8157,7067,"Реалокатор 2020"]
[8320,6741,"Реалокатор 2020"]
[2148,4064,"Реалокатор 2020"]
[2340,"J147","Реалокатор 2020"]
[2194,"S475","Реалокатор 2020"]
[2186,3244,"Реалокатор 2020"]
[1107,"G796","Реалокатор 2020"]
[2717,3249,"Реалокатор 2020"]
[1242,6525,"Реалокатор 2020"]
[1013,4744,"Реалокатор 2020"]
[878,6073,"Реалокатор 2020"]
[9562,"J757","Реалокатор 2020"]
[940,"G597","Реалокатор 2020"]
[133,"J755","Реалокатор 2020"]
[5177,4015,"Реалокатор 2020"]
[120,"L267","Реалокатор 2020"]
[5235,4139,"Реалокатор 2020"]
[11235,"X056","Реалокатор 2020"]

{"sheet":"Данные за 2021 г","index":2,"n_rows":200,"n_cols":4,"rows_kept":200,"cut":false,"hidden":false,"merged":[]}
["Территория","Кластера","Статус","Кол-во заявок"]
["ВС-1 Итог",null,null,{"$f":"SUM(D3:D8)","v":{"$error":"#REF!"}}]
["ВС-1",null,"В ожидании",{"$f":"COUNTIFS(Реестр!$H:$H,'Данные за 2021 г'!$A3,Реестр!#REF!,$C3,Реестр!$K:$K,\">01.01.2021\")","v":{"$error":"#REF!"}}]
["ВС-1",null,"В работе",{"$f":"COUNTIFS(Реестр!$H:$H,'Данные за 2021 г'!$A4,Реестр!#REF!,$C4,Реестр!$K:$K,\">01.01.2021\")","v":{"$error":"#REF!"}}]
["ВС-1",null,"Готово",{"$f":"COUNTIFS(Реестр!$H:$H,'Данные за 2021 г'!$A5,Реестр!#REF!,$C5,Реестр!$K:$K,\">01.01.2021\")","v":{"$error":"#REF!"}}]
["ВС-1",null,"На согласовании",{"$f":"COUNTIFS(Реестр!$H:$H,'Данные за 2021 г'!$A6,Реестр!#REF!,$C6,Реестр!$K:$K,\">01.01.2021\")","v":{"$error":"#REF!"}}]
["ВС-1",null,"Отказ",{"$f":"COUNTIFS(Реестр!$H:$H,'Данные за 2021 г'!$A7,Реестр!#REF!,$C7,Реестр!$K:$K,\">01.01.2021\")","v":{"$error":"#REF!"}}]
["ВС-1",null,"Согласован",{"$f":"COUNTIFS(Реестр!$H:$H,'Данные за 2021 г'!$A8,Реестр!#REF!,$C8,Реестр!$K:$K,\">01.01.2021\")","v":{"$error":"#REF!"}}]
["ВС-1 Кластера Итог"]
[null,"Кластер Волга-Север 01 Ярославль-Север","В ожидании",{"$f":"COUNTIFS(Реестр!$D:$D,'Данные за 2021 г'!$B10,Реестр!#REF!,$C10,Реестр!$K:$K,\">01.01.2021\")","v":{"$error":"#REF!"}}]
[null,"Кластер Волга-Север 01 Ярославль-Север","В работе",{"$f":"COUNTIFS(Реестр!$D:$D,'Данные за 2021 г'!$B11,Реестр!#REF!,$C11,Реестр!$K:$K,\">01.01.2021\")","v":{"$error":"#REF!"}}]
[null,"Кластер Волга-Север 01 Ярославль-Север","Готово",{"$f":"COUNTIFS(Реестр!$D:$D,'Данные за 2021 г'!$B12,Реестр!#REF!,$C12,Реестр!$K:$K,\">01.01.2021\")","v":{"$error":"#REF!"}}]
[null,"Кластер Волга-Север 01 Ярославль-Север","На согласовании",{"$f":"COUNTIFS(Реестр!$D:$D,'Данные за 2021 г'!$B13,Реестр!#REF!,$C13,Реестр!$K:$K,\">01.01.2021\")","v":{"$error":"#REF!"}}]
[null,"Кластер Волга-Север 01 Ярославль-Север","Отказ",{"$f":"COUNTIFS(Реестр!$D:$D,'Данные за 2021 г'!$B14,Реестр!#REF!,$C14,Реестр!$K:$K,\">01.01.2021\")","v":{"$error":"#REF!"}}]
[null,"Кластер Волга-Север 01 Ярославль-Север","Согласован",{"$f":"COUNTIFS(Реестр!$D:$D,'Данные за 2021 г'!$B15,Реестр!#REF!,$C15,Реестр!$K:$K,\">01.01.2021\")","v":{"$error":"#REF!"}}]
[null,"Кластер Волга-Север 01 Ярославль-Север Итог",null,{"$f":"SUM(D10:D15)","v":{"$error":"#REF!"}}]
[null,"Кластер Волга-Север 02 Вологда","В ожидании",{"$f":"COUNTIFS(Реестр!$D:$D,'Данные за 2021 г'!$B17,Реестр!#REF!,$C17,Реестр!$K:$K,\">01.01.2021\")","v":{"$error":"#REF!"}}]
[null,"Кластер Волга-Север 02 Вологда","В работе",{"$f":"COUNTIFS(Реестр!$D:$D,'Данные за 2021 г'!$B18,Реестр!#REF!,$C18,Реестр!$K:$K,\">01.01.2021\")","v":{"$error":"#REF!"}}]
[null,"Кластер Волга-Север 02 Вологда","Готово",{"$f":"COUNTIFS(Реестр!$D:$D,'Данные за 2021 г'!$B19,Реестр!#REF!,$C19,Реестр!$K:$K,\">01.01.2021\")","v":{"$error":"#REF!"}}]
[null,"Кластер Волга-Север 02 Вологда","На согласовании",{"$f":"COUNTIFS(Реестр!$D:$D,'Данные за 2021 г'!$B20,Реестр!#REF!,$C20,Реестр!$K:$K,\">01.01.2021\")","v":{"$error":"#REF!"}}]
[null,"Кластер Волга-Север 02 Вологда","Отказ",{"$f":"COUNTIFS(Реестр!$D:$D,'Данные за 2021 г'!$B21,Реестр!#REF!,$C21,Реестр!$K:$K,\">01.01.2021\")","v":{"$error":"#REF!"}}]
[null,"Кластер Волга-Север 02 Вологда","Согласован",{"$f":"COUNTIFS(Реестр!$D:$D,'Данные за 2021 г'!$B22,Реестр!#REF!,$C22,Реестр!$K:$K,\">01.01.2021\")","v":{"$error":"#REF!"}}]
[null,"Кластер Волга-Север 02 Вологда Итог",null,{"$f":"SUM(D17:D22)","v":{"$error":"#REF!"}}]
[null,"Кластер Волга-Север 03 Кострома","В ожидании",{"$f":"COUNTIFS(Реестр!$D:$D,'Данные за 2021 г'!$B24,Реестр!#REF!,$C24,Реестр!$K:$K,\">01.01.2021\")","v":{"$error":"#REF!"}}]
[null,"Кластер Волга-Север 03 Кострома","В работе",{"$f":"COUNTIFS(Реестр!$D:$D,'Данные за 2021 г'!$B25,Реестр!#REF!,$C25,Реестр!$K:$K,\">01.01.2021\")","v":{"$error":"#REF!"}}]
[null,"Кластер Волга-Север 03 Кострома","Готово",{"$f":"COUNTIFS(Реестр!$D:$D,'Данные за 2021 г'!$B26,Реестр!#REF!,$C26,Реестр!$K:$K,\">01.01.2021\")","v":{"$error":"#REF!"}}]
[null,"Кластер Волга-Север 03 Кострома","На согласовании",{"$f":"COUNTIFS(Реестр!$D:$D,'Данные за 2021 г'!$B27,Реестр!#REF!,$C27,Реестр!$K:$K,\">01.01.2021\")","v":{"$error":"#REF!"}}]
[null,"Кластер Волга-Север 03 Кострома","Отказ",{"$f":"COUNTIFS(Реестр!$D:$D,'Данные за 2021 г'!$B28,Реестр!#REF!,$C28,Реестр!$K:$K,\">01.01.2021\")","v":{"$error":"#REF!"}}]
[null,"Кластер Волга-Север 03 Кострома","Согласован",{"$f":"COUNTIFS(Реестр!$D:$D,'Данные за 2021 г'!$B29,Реестр!#REF!,$C29,Реестр!$K:$K,\">01.01.2021\")","v":{"$error":"#REF!"}}]
[null,"Кластер Волга-Север 03 Кострома Итог",null,{"$f":"SUM(D24:D29)","v":{"$error":"#REF!"}}]
[null,"Кластер Волга-Север 04 Иваново ЮГ","В ожидании",{"$f":"COUNTIFS(Реестр!$D:$D,'Данные за 2021 г'!$B31,Реестр!#REF!,$C31,Реестр!$K:$K,\">01.01.2021\")","v":{"$error":"#REF!"}}]
[null,"Кластер Волга-Север 04 Иваново ЮГ","В работе",{"$f":"COUNTIFS(Реестр!$D:$D,'Данные за 2021 г'!$B32,Реестр!#REF!,$C32,Реестр!$K:$K,\">01.01.2021\")","v":{"$error":"#REF!"}}]
[null,"Кластер Волга-Север 04 Иваново ЮГ","Готово",{"$f":"COUNTIFS(Реестр!$D:$D,'Данные за 2021 г'!$B33,Реестр!#REF!,$C33,Реестр!$K:$K,\">01.01.2021\")","v":{"$error":"#REF!"}}]
[null,"Кластер Волга-Север 04 Иваново ЮГ","На согласовании",{"$f":"COUNTIFS(Реестр!$D:$D,'Данные за 2021 г'!$B34,Реестр!#REF!,$C34,Реестр!$K:$K,\">01.01.2021\")","v":{"$error":"#REF!"}}]
[null,"Кластер Волга-Север 04 Иваново ЮГ","Отказ",{"$f":"COUNTIFS(Реестр!$D:$D,'Данные за 2021 г'!$B35,Реестр!#REF!,$C35,Реестр!$K:$K,\">01.01.2021\")","v":{"$error":"#REF!"}}]
[null,"Кластер Волга-Север 04 Иваново ЮГ","Согласован",{"$f":"COUNTIFS(Реестр!$D:$D,'Данные за 2021 г'!$B36,Реестр!#REF!,$C36,Реестр!$K:$K,\">01.01.2021\")","v":{"$error":"#REF!"}}]
[null,"Кластер Волга-Север 04 Иваново ЮГ Итог",null,{"$f":"SUM(D31:D36)","v":{"$error":"#REF!"}}]
[null,"Кластер Волга-Север 05 Александров","В ожидании",{"$f":"COUNTIFS(Реестр!$D:$D,'Данные за 2021 г'!$B38,Реестр!#REF!,$C38,Реестр!$K:$K,\">01.01.2021\")","v":{"$error":"#REF!"}}]
[null,"Кластер Волга-Север 05 Александров","В работе",{"$f":"COUNTIFS(Реестр!$D:$D,'Данные за 2021 г'!$B39,Реестр!#REF!,$C39,Реестр!$K:$K,\">01.01.2021\")","v":{"$error":"#REF!"}}]
[null,"Кластер Волга-Север 05 Александров","Готово",{"$f":"COUNTIFS(Реестр!$D:$D,'Данные за 2021 г'!$B40,Реестр!#REF!,$C40,Реестр!$K:$K,\">01.01.2021\")","v":{"$error":"#REF!"}}]
[null,"Кластер Волга-Север 05 Александров","На согласовании",{"$f":"COUNTIFS(Реестр!$D:$D,'Данные за 2021 г'!$B41,Реестр!#REF!,$C41,Реестр!$K:$K,\">01.01.2021\")","v":{"$error":"#REF!"}}]
[null,"Кластер Волга-Север 05 Александров","Отказ",{"$f":"COUNTIFS(Реестр!$D:$D,'Данные за 2021 г'!$B42,Реестр!#REF!,$C42,Реестр!$K:$K,\">01.01.2021\")","v":{"$error":"#REF!"}}]
[null,"Кластер Волга-Север 05 Александров","Согласован",{"$f":"COUNTIFS(Реестр!$D:$D,'Данные за 2021 г'!$B43,Реестр!#REF!,$C43,Реестр!$K:$K,\">01.01.2021\")","v":{"$error":"#REF!"}}]
[null,"Кластер Волга-Север 05 Александров Итог",null,{"$f":"SUM(D38:D43)","v":{"$error":"#REF!"}}]
[null,"Кластер Волга-Север 06 Рыбинск","В ожидании",{"$f":"COUNTIFS(Реестр!$D:$D,'Данные за 2021 г'!$B45,Реестр!#REF!,$C45,Реестр!$K:$K,\">01.01.2021\")","v":{"$error":"#REF!"}}]
[null,"Кластер Волга-Север 06 Рыбинск","В работе",{"$f":"COUNTIFS(Реестр!$D:$D,'Данные за 2021 г'!$B46,Реестр!#REF!,$C46,Реестр!$K:$K,\">01.01.2021\")","v":{"$error":"#REF!"}}]
[null,"Кластер Волга-Север 06 Рыбинск","Готово",{"$f":"COUNTIFS(Реестр!$D:$D,'Данные за 2021 г'!$B47,Реестр!#REF!,$C47,Реестр!$K:$K,\">01.01.2021\")","v":{"$error":"#REF!"}}]
[null,"Кластер Волга-Север 06 Рыбинск","На согласовании",{"$f":"COUNTIFS(Реестр!$D:$D,'Данные за 2021 г'!$B48,Реестр!#REF!,$C48,Реестр!$K:$K,\">01.01.2021\")","v":{"$error":"#REF!"}}]
[null,"Кластер Волга-Север 06 Рыбинск","Отказ",{"$f":"COUNTIFS(Реестр!$D:$D,'Данные за 2021 г'!$B49,Реестр!#REF!,$C49,Реестр!$K:$K,\">01.01.2021\")","v":{"$error":"#REF!"}}]
[null,"Кластер Волга-Север 06 Рыбинск","Согласован",{"$f":"COUNTIFS(Реестр!$D:$D,'Данные за 2021 г'!$B50,Реестр!#REF!,$C50,Реестр!$K:$K,\">01.01.2021\")","v":{"$error":"#REF!"}}]
[null,"Кластер Волга-Север 06 Рыбинск Итог",null,{"$f":"SUM(D45:D50)","v":{"$error":"#REF!"}}]
[null,"Кластер Волга-Север 07 Череповец","В ожидании",{"$f":"COUNTIFS(Реестр!$D:$D,'Данные за 2021 г'!$B52,Реестр!#REF!,$C52,Реестр!$K:$K,\">01.01.2021\")","v":{"$error":"#REF!"}}]
[null,"Кластер Волга-Север 07 Череповец","В работе",{"$f":"COUNTIFS(Реестр!$D:$D,'Данные за 2021 г'!$B53,Реестр!#REF!,$C53,Реестр!$K:$K,\">01.01.2021\")","v":{"$error":"#REF!"}}]
[null,"Кластер Волга-Север 07 Череповец","Готово",{"$f":"COUNTIFS(Реестр!$D:$D,'Данные за 2021 г'!$B54,Реестр!#REF!,$C54,Реестр!$K:$K,\">01.01.2021\")","v":{"$error":"#REF!"}}]
[null,"Кластер Волга-Север 07 Череповец","На согласовании",{"$f":"COUNTIFS(Реестр!$D:$D,'Данные за 2021 г'!$B55,Реестр!#REF!,$C55,Реестр!$K:$K,\">01.01.2021\")","v":{"$error":"#REF!"}}]
[null,"Кластер Волга-Север 07 Череповец","Отказ",{"$f":"COUNTIFS(Реестр!$D:$D,'Данные за 2021 г'!$B56,Реестр!#REF!,$C56,Реестр!$K:$K,\">01.01.2021\")","v":{"$error":"#REF!"}}]
[null,"Кластер Волга-Север 07 Череповец","Согласован",{"$f":"COUNTIFS(Реестр!$D:$D,'Данные за 2021 г'!$B57,Реестр!#REF!,$C57,Реестр!$K:$K,\">01.01.2021\")","v":{"$error":"#REF!"}}]
[null,"Кластер Волга-Север 07 Череповец Итог",null,{"$f":"SUM(D52:D57)","v":{"$error":"#REF!"}}]
[null,"Кластер Волга-Север 08 Иваново Север","В ожидании",{"$f":"COUNTIFS(Реестр!$D:$D,'Данные за 2021 г'!$B59,Реестр!#REF!,$C59,Реестр!$K:$K,\">01.01.2021\")","v":{"$error":"#REF!"}}]
[null,"Кластер Волга-Север 08 Иваново Север","В работе",{"$f":"COUNTIFS(Реестр!$D:$D,'Данные за 2021 г'!$B60,Реестр!#REF!,$C60,Реестр!$K:$K,\">01.01.2021\")","v":{"$error":"#REF!"}}]
[null,"Кластер Волга-Север 08 Иваново Север","Готово",{"$f":"COUNTIFS(Реестр!$D:$D,'Данные за 2021 г'!$B61,Реестр!#REF!,$C61,Реестр!$K:$K,\">01.01.2021\")","v":{"$error":"#REF!"}}]
[null,"Кластер Волга-Север 08 Иваново Север","На согласовании",{"$f":"COUNTIFS(Реестр!$D:$D,'Данные за 2021 г'!$B62,Реестр!#REF!,$C62,Реестр!$K:$K,\">01.01.2021\")","v":{"$error":"#REF!"}}]
[null,"Кластер Волга-Север 08 Иваново Север","Отказ",{"$f":"COUNTIFS(Реестр!$D:$D,'Данные за 2021 г'!$B63,Реестр!#REF!,$C63,Реестр!$K:$K,\">01.01.2021\")","v":{"$error":"#REF!"}}]
[null,"Кластер Волга-Север 08 Иваново Север","Согласован",{"$f":"COUNTIFS(Реестр!$D:$D,'Данные за 2021 г'!$B64,Реестр!#REF!,$C64,Реестр!$K:$K,\">01.01.2021\")","v":{"$error":"#REF!"}}]
[null,"Кластер Волга-Север 08 Иваново Север Итог",null,{"$f":"SUM(D59:D64)","v":{"$error":"#REF!"}}]
[null,"Кластер Волга-Север 09 Ярославль-Юг","В ожидании",{"$f":"COUNTIFS(Реестр!$D:$D,'Данные за 2021 г'!$B66,Реестр!#REF!,$C66,Реестр!$K:$K,\">01.01.2021\")","v":{"$error":"#REF!"}}]
[null,"Кластер Волга-Север 09 Ярославль-Юг","В работе",{"$f":"COUNTIFS(Реестр!$D:$D,'Данные за 2021 г'!$B67,Реестр!#REF!,$C67,Реестр!$K:$K,\">01.01.2021\")","v":{"$error":"#REF!"}}]
[null,"Кластер Волга-Север 09 Ярославль-Юг","Готово",{"$f":"COUNTIFS(Реестр!$D:$D,'Данные за 2021 г'!$B68,Реестр!#REF!,$C68,Реестр!$K:$K,\">01.01.2021\")","v":{"$error":"#REF!"}}]
[null,"Кластер Волга-Север 09 Ярославль-Юг","На согласовании",{"$f":"COUNTIFS(Реестр!$D:$D,'Данные за 2021 г'!$B69,Реестр!#REF!,$C69,Реестр!$K:$K,\">01.01.2021\")","v":{"$error":"#REF!"}}]
[null,"Кластер Волга-Север 09 Ярославль-Юг","Отказ",{"$f":"COUNTIFS(Реестр!$D:$D,'Данные за 2021 г'!$B70,Реестр!#REF!,$C70,Реестр!$K:$K,\">01.01.2021\")","v":{"$error":"#REF!"}}]
[null,"Кластер Волга-Север 09 Ярославль-Юг","Согласован",{"$f":"COUNTIFS(Реестр!$D:$D,'Данные за 2021 г'!$B71,Реестр!#REF!,$C71,Реестр!$K:$K,\">01.01.2021\")","v":{"$error":"#REF!"}}]
[null,"Кластер Волга-Север 09 Ярославль-Юг Итог",null,{"$f":"SUM(D66:D71)","v":{"$error":"#REF!"}}]
["ВС-2 Итог",null,null,{"$f":"SUM(D74:D79)","v":{"$error":"#REF!"}}]
["ВС-2",null,"В ожидании",{"$f":"COUNTIFS(Реестр!$H:$H,'Данные за 2021 г'!$A74,Реестр!#REF!,$C74,Реестр!$K:$K,\">01.01.2021\")","v":{"$error":"#REF!"}}]
["ВС-2",null,"В работе",{"$f":"COUNTIFS(Реестр!$H:$H,'Данные за 2021 г'!$A75,Реестр!#REF!,$C75,Реестр!$K:$K,\">01.01.2021\")","v":{"$error":"#REF!"}}]
["ВС-2",null,"Готово",{"$f":"COUNTIFS(Реестр!$H:$H,'Данные за 2021 г'!$A76,Реестр!#REF!,$C76,Реестр!$K:$K,\">01.01.2021\")","v":{"$error":"#REF!"}}]
["ВС-2",null,"На согласовании",{"$f":"COUNTIFS(Реестр!$H:$H,'Данные за 2021 г'!$A77,Реестр!#REF!,$C77,Реестр!$K:$K,\">01.01.2021\")","v":{"$error":"#REF!"}}]
["ВС-2",null,"Отказ",{"$f":"COUNTIFS(Реестр!$H:$H,'Данные за 2021 г'!$A78,Реестр!#REF!,$C78,Реестр!$K:$K,\">01.01.2021\")","v":{"$error":"#REF!"}}]
["ВС-2",null,"Согласован",{"$f":"COUNTIFS(Реестр!$H:$H,'Данные за 2021 г'!$A79,Реестр!#REF!,$C79,Реестр!$K:$K,\">01.01.2021\")","v":{"$error":"#REF!"}}]
["ВС-2 Кластера Итог"]
[null,"Кластер Волга-Север 10 Киров","В ожидании",{"$f":"COUNTIFS(Реестр!$D:$D,'Данные за 2021 г'!$B81,Реестр!#REF!,$C81,Реестр!$K:$K,\">01.01.2021\")","v":{"$error":"#REF!"}}]
[null,"Кластер Волга-Север 10 Киров","В работе",{"$f":"COUNTIFS(Реестр!$D:$D,'Данные за 2021 г'!$B82,Реестр!#REF!,$C82,Реестр!$K:$K,\">01.01.2021\")","v":{"$error":"#REF!"}}]
[null,"Кластер Волга-Север 10 Киров","Готово",{"$f":"COUNTIFS(Реестр!$D:$D,'Данные за 2021 г'!$B83,Реестр!#REF!,$C83,Реестр!$K:$K,\">01.01.2021\")","v":{"$error":"#REF!"}}]
[null,"Кластер Волга-Север 10 Киров","На согласовании",{"$f":"COUNTIFS(Реестр!$D:$D,'Данные за 2021 г'!$B84,Реестр!#REF!,$C84,Реестр!$K:$K,\">01.01.2021\")","v":{"$error":"#REF!"}}]
[null,"Кластер Волга-Север 10 Киров","Отказ",{"$f":"COUNTIFS(Реестр!$D:$D,'Данные за 2021 г'!$B85,Реестр!#REF!,$C85,Реестр!$K:$K,\">01.01.2021\")","v":{"$error":"#REF!"}}]
[null,"Кластер Волга-Север 10 Киров","Согласован",{"$f":"COUNTIFS(Реестр!$D:$D,'Данные за 2021 г'!$B86,Реестр!#REF!,$C86,Реестр!$K:$K,\">01.01.2021\")","v":{"$error":"#REF!"}}]
[null,"Кластер Волга-Север 10 Киров Итог",null,{"$f":"SUM(D81:D86)","v":{"$error":"#REF!"}}]
[null,"Кластер Волга-Север 11 Сыктывкар","В ожидании",{"$f":"COUNTIFS(Реестр!$D:$D,'Данные за 2021 г'!$B88,Реестр!#REF!,$C88,Реестр!$K:$K,\">01.01.2021\")","v":{"$error":"#REF!"}}]
[null,"Кластер Волга-Север 11 Сыктывкар","В работе",{"$f":"COUNTIFS(Реестр!$D:$D,'Данные за 2021 г'!$B89,Реестр!#REF!,$C89,Реестр!$K:$K,\">01.01.2021\")","v":{"$error":"#REF!"}}]
[null,"Кластер Волга-Север 11 Сыктывкар","Готово",{"$f":"COUNTIFS(Реестр!$D:$D,'Данные за 2021 г'!$B90,Реестр!#REF!,$C90,Реестр!$K:$K,\">01.01.2021\")","v":{"$error":"#REF!"}}]
[null,"Кластер Волга-Север 11 Сыктывкар","На согласовании",{"$f":"COUNTIFS(Реестр!$D:$D,'Данные за 2021 г'!$B91,Реестр!#REF!,$C91,Реестр!$K:$K,\">01.01.2021\")","v":{"$error":"#REF!"}}]
[null,"Кластер Волга-Север 11 Сыктывкар","Отказ",{"$f":"COUNTIFS(Реестр!$D:$D,'Данные за 2021 г'!$B92,Реестр!#REF!,$C92,Реестр!$K:$K,\">01.01.2021\")","v":{"$error":"#REF!"}}]
[null,"Кластер Волга-Север 11 Сыктывкар","Согласован",{"$f":"COUNTIFS(Реестр!$D:$D,'Данные за 2021 г'!$B93,Реестр!#REF!,$C93,Реестр!$K:$K,\">01.01.2021\")","v":{"$error":"#REF!"}}]
[null,"Кластер Волга-Север 11 Сыктывкар Итог",null,{"$f":"SUM(D88:D93)","v":{"$error":"#REF!"}}]
[null,"Кластер Волга-Север 12 Кирово-Чепецк","В ожидании",{"$f":"COUNTIFS(Реестр!$D:$D,'Данные за 2021 г'!$B95,Реестр!#REF!,$C95,Реестр!$K:$K,\">01.01.2021\")","v":{"$error":"#REF!"}}]
[null,"Кластер Волга-Север 12 Кирово-Чепецк","В работе",{"$f":"COUNTIFS(Реестр!$D:$D,'Данные за 2021 г'!$B96,Реестр!#REF!,$C96,Реестр!$K:$K,\">01.01.2021\")","v":{"$error":"#REF!"}}]
[null,"Кластер Волга-Север 12 Кирово-Чепецк","Готово",{"$f":"COUNTIFS(Реестр!$D:$D,'Данные за 2021 г'!$B97,Реестр!#REF!,$C97,Реестр!$K:$K,\">01.01.2021\")","v":{"$error":"#REF!"}}]
[null,"Кластер Волга-Север 12 Кирово-Чепецк","На согласовании",{"$f":"COUNTIFS(Реестр!$D:$D,'Данные за 2021 г'!$B98,Реестр!#REF!,$C98,Реестр!$K:$K,\">01.01.2021\")","v":{"$error":"#REF!"}}]
[null,"Кластер Волга-Север 12 Кирово-Чепецк","Отказ",{"$f":"COUNTIFS(Реестр!$D:$D,'Данные за 2021 г'!$B99,Реестр!#REF!,$C99,Реестр!$K:$K,\">01.01.2021\")","v":{"$error":"#REF!"}}]
[null,"Кластер Волга-Север 12 Кирово-Чепецк","Согласован",{"$f":"COUNTIFS(Реестр!$D:$D,'Данные за 2021 г'!$B100,Реестр!#REF!,$C100,Реестр!$K:$K,\">01.01.2021\")","v":{"$error":"#REF!"}}]
[null,"Кластер Волга-Север 12 Кирово-Чепецк Итог",null,{"$f":"SUM(D95:D100)","v":{"$error":"#REF!"}}]
[null,"Кластер Волга-Север 14 Архангельск","В ожидании",{"$f":"COUNTIFS(Реестр!$D:$D,'Данные за 2021 г'!$B102,Реестр!#REF!,$C102,Реестр!$K:$K,\">01.01.2021\")","v":{"$error":"#REF!"}}]
[null,"Кластер Волга-Север 14 Архангельск","В работе",{"$f":"COUNTIFS(Реестр!$D:$D,'Данные за 2021 г'!$B103,Реестр!#REF!,$C103,Реестр!$K:$K,\">01.01.2021\")","v":{"$error":"#REF!"}}]
[null,"Кластер Волга-Север 14 Архангельск","Готово",{"$f":"COUNTIFS(Реестр!$D:$D,'Данные за 2021 г'!$B104,Реестр!#REF!,$C104,Реестр!$K:$K,\">01.01.2021\")","v":{"$error":"#REF!"}}]
[null,"Кластер Волга-Север 14 Архангельск","На согласовании",{"$f":"COUNTIFS(Реестр!$D:$D,'Данные за 2021 г'!$B105,Реестр!#REF!,$C105,Реестр!$K:$K,\">01.01.2021\")","v":{"$error":"#REF!"}}]
[null,"Кластер Волга-Север 14 Архангельск","Отказ",{"$f":"COUNTIFS(Реестр!$D:$D,'Данные за 2021 г'!$B106,Реестр!#REF!,$C106,Реестр!$K:$K,\">01.01.2021\")","v":{"$error":"#REF!"}}]
[null,"Кластер Волга-Север 14 Архангельск","Согласован",{"$f":"COUNTIFS(Реестр!$D:$D,'Данные за 2021 г'!$B107,Реестр!#REF!,$C107,Реестр!$K:$K,\">01.01.2021\")","v":{"$error":"#REF!"}}]
[null,"Кластер Волга-Север 14 Архангельск Итог",null,{"$f":"SUM(D102:D107)","v":{"$error":"#REF!"}}]
[null,"Кластер Волга-Север 15 Котлас","В ожидании",{"$f":"COUNTIFS(Реестр!$D:$D,'Данные за 2021 г'!$B109,Реестр!#REF!,$C109,Реестр!$K:$K,\">01.01.2021\")","v":{"$error":"#REF!"}}]
[null,"Кластер Волга-Север 15 Котлас","В работе",{"$f":"COUNTIFS(Реестр!$D:$D,'Данные за 2021 г'!$B110,Реестр!#REF!,$C110,Реестр!$K:$K,\">01.01.2021\")","v":{"$error":"#REF!"}}]
[null,"Кластер Волга-Север 15 Котлас","Готово",{"$f":"COUNTIFS(Реестр!$D:$D,'Данные за 2021 г'!$B111,Реестр!#REF!,$C111,Реестр!$K:$K,\">01.01.2021\")","v":{"$error":"#REF!"}}]
[null,"Кластер Волга-Север 15 Котлас","На согласовании",{"$f":"COUNTIFS(Реестр!$D:$D,'Данные за 2021 г'!$B112,Реестр!#REF!,$C112,Реестр!$K:$K,\">01.01.2021\")","v":{"$error":"#REF!"}}]
[null,"Кластер Волга-Север 15 Котлас","Отказ",{"$f":"COUNTIFS(Реестр!$D:$D,'Данные за 2021 г'!$B113,Реестр!#REF!,$C113,Реестр!$K:$K,\">01.01.2021\")","v":{"$error":"#REF!"}}]
[null,"Кластер Волга-Север 15 Котлас","Согласован",{"$f":"COUNTIFS(Реестр!$D:$D,'Данные за 2021 г'!$B114,Реестр!#REF!,$C114,Реестр!$K:$K,\">01.01.2021\")","v":{"$error":"#REF!"}}]
[null,"Кластер Волга-Север 15 Котлас Итог",null,{"$f":"SUM(D109:D114)","v":{"$error":"#REF!"}}]
[null,"Кластер Волга-Север 16 Северодвинск","В ожидании",{"$f":"COUNTIFS(Реестр!$D:$D,'Данные за 2021 г'!$B116,Реестр!#REF!,$C116,Реестр!$K:$K,\">01.01.2021\")","v":{"$error":"#REF!"}}]
[null,"Кластер Волга-Север 16 Северодвинск","В работе",{"$f":"COUNTIFS(Реестр!$D:$D,'Данные за 2021 г'!$B117,Реестр!#REF!,$C117,Реестр!$K:$K,\">01.01.2021\")","v":{"$error":"#REF!"}}]
[null,"Кластер Волга-Север 16 Северодвинск","Готово",{"$f":"COUNTIFS(Реестр!$D:$D,'Данные за 2021 г'!$B118,Реестр!#REF!,$C118,Реестр!$K:$K,\">01.01.2021\")","v":{"$error":"#REF!"}}]
[null,"Кластер Волга-Север 16 Северодвинск","На согласовании",{"$f":"COUNTIFS(Реестр!$D:$D,'Данные за 2021 г'!$B119,Реестр!#REF!,$C119,Реестр!$K:$K,\">01.01.2021\")","v":{"$error":"#REF!"}}]
[null,"Кластер Волга-Север 16 Северодвинск","Отказ",{"$f":"COUNTIFS(Реестр!$D:$D,'Данные за 2021 г'!$B120,Реестр!#REF!,$C120,Реестр!$K:$K,\">01.01.2021\")","v":{"$error":"#REF!"}}]
[null,"Кластер Волга-Север 16 Северодвинск","Согласован",{"$f":"COUNTIFS(Реестр!$D:$D,'Данные за 2021 г'!$B121,Реестр!#REF!,$C121,Реестр!$K:$K,\">01.01.2021\")","v":{"$error":"#REF!"}}]
[null,"Кластер Волга-Север 16 Северодвинск Итог",null,{"$f":"SUM(D116:D121)","v":{"$error":"#REF!"}}]
["ВС-3 Итог",null,null,{"$f":"SUM(D124:D129)","v":{"$error":"#REF!"}}]
["ВС-3",null,"В ожидании",{"$f":"COUNTIFS(Реестр!$H:$H,'Данные за 2021 г'!$A124,Реестр!#REF!,$C124,Реестр!$K:$K,\">01.01.2021\")","v":{"$error":"#REF!"}}]
["ВС-3",null,"В работе",{"$f":"COUNTIFS(Реестр!$H:$H,'Данные за 2021 г'!$A125,Реестр!#REF!,$C125,Реестр!$K:$K,\">01.01.2021\")","v":{"$error":"#REF!"}}]
["ВС-3",null,"Готово",{"$f":"COUNTIFS(Реестр!$H:$H,'Данные за 2021 г'!$A126,Реестр!#REF!,$C126,Реестр!$K:$K,\">01.01.2021\")","v":{"$error":"#REF!"}}]
["ВС-3",null,"На согласовании",{"$f":"COUNTIFS(Реестр!$H:$H,'Данные за 2021 г'!$A127,Реестр!#REF!,$C127,Реестр!$K:$K,\">01.01.2021\")","v":{"$error":"#REF!"}}]
["ВС-3",null,"Отказ",{"$f":"COUNTIFS(Реестр!$H:$H,'Данные за 2021 г'!$A128,Реестр!#REF!,$C128,Реестр!$K:$K,\">01.01.2021\")","v":{"$error":"#REF!"}}]
["ВС-3",null,"Согласован",{"$f":"COUNTIFS(Реестр!$H:$H,'Данные за 2021 г'!$A129,Реестр!#REF!,$C129,Реестр!$K:$K,\">01.01.2021\")","v":{"$error":"#REF!"}}]
["ВС-3 кластера Итог"]
[null,"Кластер Волга-Север 17 Дзержинск","В ожидании",{"$f":"COUNTIFS(Реестр!$D:$D,'Данные за 2021 г'!$B131,Реестр!#REF!,$C131,Реестр!$K:$K,\">01.01.2021\")","v":{"$error":"#REF!"}}]
[null,"Кластер Волга-Север 17 Дзержинск","В работе",{"$f":"COUNTIFS(Реестр!$D:$D,'Данные за 2021 г'!$B132,Реестр!#REF!,$C132,Реестр!$K:$K,\">01.01.2021\")","v":{"$error":"#REF!"}}]
[null,"Кластер Волга-Север 17 Дзержинск","Готово",{"$f":"COUNTIFS(Реестр!$D:$D,'Данные за 2021 г'!$B133,Реестр!#REF!,$C133,Реестр!$K:$K,\">01.01.2021\")","v":{"$error":"#REF!"}}]
[null,"Кластер Волга-Север 17 Дзержинск","На согласовании",{"$f":"COUNTIFS(Реестр!$D:$D,'Данные за 2021 г'!$B134,Реестр!#REF!,$C134,Реестр!$K:$K,\">01.01.2021\")","v":{"$error":"#REF!"}}]
[null,"Кластер Волга-Север 17 Дзержинск","Отказ",{"$f":"COUNTIFS(Реестр!$D:$D,'Данные за 2021 г'!$B135,Реестр!#REF!,$C135,Реестр!$K:$K,\">01.01.2021\")","v":{"$error":"#REF!"}}]
[null,"Кластер Волга-Север 17 Дзержинск","Согласован",{"$f":"COUNTIFS(Реестр!$D:$D,'Данные за 2021 г'!$B136,Реестр!#REF!,$C136,Реестр!$K:$K,\">01.01.2021\")","v":{"$error":"#REF!"}}]
[null,"Кластер Волга-Север 17 Дзержинск Итог",null,{"$f":"SUM(D131:D136)","v":{"$error":"#REF!"}}]
[null,"Кластер Волга-Север 18 Нижний Новгород Автозаводский","В ожидании",{"$f":"COUNTIFS(Реестр!$D:$D,'Данные за 2021 г'!$B138,Реестр!#REF!,$C138,Реестр!$K:$K,\">01.01.2021\")","v":{"$error":"#REF!"}}]
[null,"Кластер Волга-Север 18 Нижний Новгород Автозаводский","В работе",{"$f":"COUNTIFS(Реестр!$D:$D,'Данные за 2021 г'!$B139,Реестр!#REF!,$C139,Реестр!$K:$K,\">01.01.2021\")","v":{"$error":"#REF!"}}]
[null,"Кластер Волга-Север 18 Нижний Новгород Автозаводский","Готово",{"$f":"COUNTIFS(Реестр!$D:$D,'Данные за 2021 г'!$B140,Реестр!#REF!,$C140,Реестр!$K:$K,\">01.01.2021\")","v":{"$error":"#REF!"}}]
[null,"Кластер Волга-Север 18 Нижний Новгород Автозаводский","На согласовании",{"$f":"COUNTIFS(Реестр!$D:$D,'Данные за 2021 г'!$B141,Реестр!#REF!,$C141,Реестр!$K:$K,\">01.01.2021\")","v":{"$error":"#REF!"}}]
[null,"Кластер Волга-Север 18 Нижний Новгород Автозаводский","Отказ",{"$f":"COUNTIFS(Реестр!$D:$D,'Данные за 2021 г'!$B142,Реестр!#REF!,$C142,Реестр!$K:$K,\">01.01.2021\")","v":{"$error":"#REF!"}}]
[null,"Кластер Волга-Север 18 Нижний Новгород Автозаводский","Согласован",{"$f":"COUNTIFS(Реестр!$D:$D,'Данные за 2021 г'!$B143,Реестр!#REF!,$C143,Реестр!$K:$K,\">01.01.2021\")","v":{"$error":"#REF!"}}]
[null,"Кластер Волга-Север 18 Нижний Новгород Автозаводский Итог",null,{"$f":"SUM(D138:D143)","v":{"$error":"#REF!"}}]
[null,"Кластер Волга-Север 19 Нижний Новгород Центр","В ожидании",{"$f":"COUNTIFS(Реестр!$D:$D,'Данные за 2021 г'!$B145,Реестр!#REF!,$C145,Реестр!$K:$K,\">01.01.2021\")","v":{"$error":"#REF!"}}]
[null,"Кластер Волга-Север 19 Нижний Новгород Центр","В работе",{"$f":"COUNTIFS(Реестр!$D:$D,'Данные за 2021 г'!$B146,Реестр!#REF!,$C146,Реестр!$K:$K,\">01.01.2021\")","v":{"$error":"#REF!"}}]
[null,"Кластер Волга-Север 19 Нижний Новгород Центр","Готово",{"$f":"COUNTIFS(Реестр!$D:$D,'Данные за 2021 г'!$B147,Реестр!#REF!,$C147,Реестр!$K:$K,\">01.01.2021\")","v":{"$error":"#REF!"}}]
[null,"Кластер Волга-Север 19 Нижний Новгород Центр","На согласовании",{"$f":"COUNTIFS(Реестр!$D:$D,'Данные за 2021 г'!$B148,Реестр!#REF!,$C148,Реестр!$K:$K,\">01.01.2021\")","v":{"$error":"#REF!"}}]
[null,"Кластер Волга-Север 19 Нижний Новгород Центр","Отказ",{"$f":"COUNTIFS(Реестр!$D:$D,'Данные за 2021 г'!$B149,Реестр!#REF!,$C149,Реестр!$K:$K,\">01.01.2021\")","v":{"$error":"#REF!"}}]
[null,"Кластер Волга-Север 19 Нижний Новгород Центр","Согласован",{"$f":"COUNTIFS(Реестр!$D:$D,'Данные за 2021 г'!$B150,Реестр!#REF!,$C150,Реестр!$K:$K,\">01.01.2021\")","v":{"$error":"#REF!"}}]
[null,"Кластер Волга-Север 19 Нижний Новгород Центр Итог",null,{"$f":"SUM(D145:D150)","v":{"$error":"#REF!"}}]
[null,"Кластер Волга-Север 20 Арзамас","В ожидании",{"$f":"COUNTIFS(Реестр!$D:$D,'Данные за 2021 г'!$B152,Реестр!#REF!,$C152,Реестр!$K:$K,\">01.01.2021\")","v":{"$error":"#REF!"}}]
[null,"Кластер Волга-Север 20 Арзамас","В работе",{"$f":"COUNTIFS(Реестр!$D:$D,'Данные за 2021 г'!$B153,Реестр!#REF!,$C153,Реестр!$K:$K,\">01.01.2021\")","v":{"$error":"#REF!"}}]
[null,"Кластер Волга-Север 20 Арзамас","Готово",{"$f":"COUNTIFS(Реестр!$D:$D,'Данные за 2021 г'!$B154,Реестр!#REF!,$C154,Реестр!$K:$K,\">01.01.2021\")","v":{"$error":"#REF!"}}]
[null,"Кластер Волга-Север 20 Арзамас","На согласовании",{"$f":"COUNTIFS(Реестр!$D:$D,'Данные за 2021 г'!$B155,Реестр!#REF!,$C155,Реестр!$K:$K,\">01.01.2021\")","v":{"$error":"#REF!"}}]
[null,"Кластер Волга-Север 20 Арзамас","Отказ",{"$f":"COUNTIFS(Реестр!$D:$D,'Данные за 2021 г'!$B156,Реестр!#REF!,$C156,Реестр!$K:$K,\">01.01.2021\")","v":{"$error":"#REF!"}}]
[null,"Кластер Волга-Север 20 Арзамас","Согласован",{"$f":"COUNTIFS(Реестр!$D:$D,'Данные за 2021 г'!$B157,Реестр!#REF!,$C157,Реестр!$K:$K,\">01.01.2021\")","v":{"$error":"#REF!"}}]
[null,"Кластер Волга-Север 20 Арзамас Итог",null,{"$f":"SUM(D152:D157)","v":{"$error":"#REF!"}}]
[null,"Кластер Волга-Север 21 Кстово","В ожидании",{"$f":"COUNTIFS(Реестр!$D:$D,'Данные за 2021 г'!$B159,Реестр!#REF!,$C159,Реестр!$K:$K,\">01.01.2021\")","v":{"$error":"#REF!"}}]
[null,"Кластер Волга-Север 21 Кстово","В работе",{"$f":"COUNTIFS(Реестр!$D:$D,'Данные за 2021 г'!$B160,Реестр!#REF!,$C160,Реестр!$K:$K,\">01.01.2021\")","v":{"$error":"#REF!"}}]
[null,"Кластер Волга-Север 21 Кстово","Готово",{"$f":"COUNTIFS(Реестр!$D:$D,'Данные за 2021 г'!$B161,Реестр!#REF!,$C161,Реестр!$K:$K,\">01.01.2021\")","v":{"$error":"#REF!"}}]
[null,"Кластер Волга-Север 21 Кстово","На согласовании",{"$f":"COUNTIFS(Реестр!$D:$D,'Данные за 2021 г'!$B162,Реестр!#REF!,$C162,Реестр!$K:$K,\">01.01.2021\")","v":{"$error":"#REF!"}}]
[null,"Кластер Волга-Север 21 Кстово","Отказ",{"$f":"COUNTIFS(Реестр!$D:$D,'Данные за 2021 г'!$B163,Реестр!#REF!,$C163,Реестр!$K:$K,\">01.01.2021\")","v":{"$error":"#REF!"}}]
[null,"Кластер Волга-Север 21 Кстово","Согласован",{"$f":"COUNTIFS(Реестр!$D:$D,'Данные за 2021 г'!$B164,Реестр!#REF!,$C164,Реестр!$K:$K,\">01.01.2021\")","v":{"$error":"#REF!"}}]
[null,"Кластер Волга-Север 21 Кстово Итог",null,{"$f":"SUM(D159:D164)","v":{"$error":"#REF!"}}]
[null,"Кластер Волга-Север 22 Семеновский","В ожидании",{"$f":"COUNTIFS(Реестр!$D:$D,'Данные за 2021 г'!$B166,Реестр!#REF!,$C166,Реестр!$K:$K,\">01.01.2021\")","v":{"$error":"#REF!"}}]
[null,"Кластер Волга-Север 22 Семеновский","В работе",{"$f":"COUNTIFS(Реестр!$D:$D,'Данные за 2021 г'!$B167,Реестр!#REF!,$C167,Реестр!$K:$K,\">01.01.2021\")","v":{"$error":"#REF!"}}]
[null,"Кластер Волга-Север 22 Семеновский","Готово",{"$f":"COUNTIFS(Реестр!$D:$D,'Данные за 2021 г'!$B168,Реестр!#REF!,$C168,Реестр!$K:$K,\">01.01.2021\")","v":{"$error":"#REF!"}}]
[null,"Кластер Волга-Север 22 Семеновский","На согласовании",{"$f":"COUNTIFS(Реестр!$D:$D,'Данные за 2021 г'!$B169,Реестр!#REF!,$C169,Реестр!$K:$K,\">01.01.2021\")","v":{"$error":"#REF!"}}]
[null,"Кластер Волга-Север 22 Семеновский","Отказ",{"$f":"COUNTIFS(Реестр!$D:$D,'Данные за 2021 г'!$B170,Реестр!#REF!,$C170,Реестр!$K:$K,\">01.01.2021\")","v":{"$error":"#REF!"}}]
[null,"Кластер Волга-Север 22 Семеновский","Согласован",{"$f":"COUNTIFS(Реестр!$D:$D,'Данные за 2021 г'!$B171,Реестр!#REF!,$C171,Реестр!$K:$K,\">01.01.2021\")","v":{"$error":"#REF!"}}]
[null,"Кластер Волга-Север 22 Семеновский Итог",null,{"$f":"SUM(D166:D171)","v":{"$error":"#REF!"}}]
[null,"Кластер Волга-Север 23 Нижний Новгород Сормовский","В ожидании",{"$f":"COUNTIFS(Реестр!$D:$D,'Данные за 2021 г'!$B173,Реестр!#REF!,$C173,Реестр!$K:$K,\">01.01.2021\")","v":{"$error":"#REF!"}}]
[null,"Кластер Волга-Север 23 Нижний Новгород Сормовский","В работе",{"$f":"COUNTIFS(Реестр!$D:$D,'Данные за 2021 г'!$B174,Реестр!#REF!,$C174,Реестр!$K:$K,\">01.01.2021\")","v":{"$error":"#REF!"}}]
[null,"Кластер Волга-Север 23 Нижний Новгород Сормовский","Готово",{"$f":"COUNTIFS(Реестр!$D:$D,'Данные за 2021 г'!$B175,Реестр!#REF!,$C175,Реестр!$K:$K,\">01.01.2021\")","v":{"$error":"#REF!"}}]
[null,"Кластер Волга-Север 23 Нижний Новгород Сормовский","На согласовании",{"$f":"COUNTIFS(Реестр!$D:$D,'Данные за 2021 г'!$B176,Реестр!#REF!,$C176,Реестр!$K:$K,\">01.01.2021\")","v":{"$error":"#REF!"}}]
[null,"Кластер Волга-Север 23 Нижний Новгород Сормовский","Отказ",{"$f":"COUNTIFS(Реестр!$D:$D,'Данные за 2021 г'!$B177,Реестр!#REF!,$C177,Реестр!$K:$K,\">01.01.2021\")","v":{"$error":"#REF!"}}]
[null,"Кластер Волга-Север 23 Нижний Новгород Сормовский","Согласован",{"$f":"COUNTIFS(Реестр!$D:$D,'Данные за 2021 г'!$B178,Реестр!#REF!,$C178,Реестр!$K:$K,\">01.01.2021\")","v":{"$error":"#REF!"}}]
[null,"Кластер Волга-Север 23 Нижний Новгород Сормовский Итог",null,{"$f":"SUM(D173:D178)","v":{"$error":"#REF!"}}]
[null,"Кластер Волга-Север 24 Мордовия","В ожидании",{"$f":"COUNTIFS(Реестр!$D:$D,'Данные за 2021 г'!$B180,Реестр!#REF!,$C180,Реестр!$K:$K,\">01.01.2021\")","v":{"$error":"#REF!"}}]
[null,"Кластер Волга-Север 24 Мордовия","В работе",{"$f":"COUNTIFS(Реестр!$D:$D,'Данные за 2021 г'!$B181,Реестр!#REF!,$C181,Реестр!$K:$K,\">01.01.2021\")","v":{"$error":"#REF!"}}]
[null,"Кластер Волга-Север 24 Мордовия","Готово",{"$f":"COUNTIFS(Реестр!$D:$D,'Данные за 2021 г'!$B182,Реестр!#REF!,$C182,Реестр!$K:$K,\">01.01.2021\")","v":{"$error":"#REF!"}}]
[null,"Кластер Волга-Север 24 Мордовия","На согласовании",{"$f":"COUNTIFS(Реестр!$D:$D,'Данные за 2021 г'!$B183,Реестр!#REF!,$C183,Реестр!$K:$K,\">01.01.2021\")","v":{"$error":"#REF!"}}]
[null,"Кластер Волга-Север 24 Мордовия","Отказ",{"$f":"COUNTIFS(Реестр!$D:$D,'Данные за 2021 г'!$B184,Реестр!#REF!,$C184,Реестр!$K:$K,\">01.01.2021\")","v":{"$error":"#REF!"}}]
[null,"Кластер Волга-Север 24 Мордовия","Согласован",{"$f":"COUNTIFS(Реестр!$D:$D,'Данные за 2021 г'!$B185,Реестр!#REF!,$C185,Реестр!$K:$K,\">01.01.2021\")","v":{"$error":"#REF!"}}]
[null,"Кластер Волга-Север 24 Мордовия Итог",null,{"$f":"SUM(D180:D185)","v":{"$error":"#REF!"}}]
[null,"Кластер Волга-Север 25 Ковров","В ожидании",{"$f":"COUNTIFS(Реестр!$D:$D,'Данные за 2021 г'!$B187,Реестр!#REF!,$C187,Реестр!$K:$K,\">01.01.2021\")","v":{"$error":"#REF!"}}]
[null,"Кластер Волга-Север 25 Ковров","В работе",{"$f":"COUNTIFS(Реестр!$D:$D,'Данные за 2021 г'!$B188,Реестр!#REF!,$C188,Реестр!$K:$K,\">01.01.2021\")","v":{"$error":"#REF!"}}]
[null,"Кластер Волга-Север 25 Ковров","Готово",{"$f":"COUNTIFS(Реестр!$D:$D,'Данные за 2021 г'!$B189,Реестр!#REF!,$C189,Реестр!$K:$K,\">01.01.2021\")","v":{"$error":"#REF!"}}]
[null,"Кластер Волга-Север 25 Ковров","На согласовании",{"$f":"COUNTIFS(Реестр!$D:$D,'Данные за 2021 г'!$B190,Реестр!#REF!,$C190,Реестр!$K:$K,\">01.01.2021\")","v":{"$error":"#REF!"}}]
[null,"Кластер Волга-Север 25 Ковров","Отказ",{"$f":"COUNTIFS(Реестр!$D:$D,'Данные за 2021 г'!$B191,Реестр!#REF!,$C191,Реестр!$K:$K,\">01.01.2021\")","v":{"$error":"#REF!"}}]
[null,"Кластер Волга-Север 25 Ковров","Согласован",{"$f":"COUNTIFS(Реестр!$D:$D,'Данные за 2021 г'!$B192,Реестр!#REF!,$C192,Реестр!$K:$K,\">01.01.2021\")","v":{"$error":"#REF!"}}]
[null,"Кластер Волга-Север 25 Ковров Итог",null,{"$f":"SUM(D187:D192)","v":{"$error":"#REF!"}}]
[null,"Кластер Волга-Север 26 Владимир","В ожидании",{"$f":"COUNTIFS(Реестр!$D:$D,'Данные за 2021 г'!$B194,Реестр!#REF!,$C194,Реестр!$K:$K,\">01.01.2021\")","v":{"$error":"#REF!"}}]
[null,"Кластер Волга-Север 26 Владимир","В работе",{"$f":"COUNTIFS(Реестр!$D:$D,'Данные за 2021 г'!$B195,Реестр!#REF!,$C195,Реестр!$K:$K,\">01.01.2021\")","v":{"$error":"#REF!"}}]
[null,"Кластер Волга-Север 26 Владимир","Готово",{"$f":"COUNTIFS(Реестр!$D:$D,'Данные за 2021 г'!$B196,Реестр!#REF!,$C196,Реестр!$K:$K,\">01.01.2021\")","v":{"$error":"#REF!"}}]
[null,"Кластер Волга-Север 26 Владимир","На согласовании",{"$f":"COUNTIFS(Реестр!$D:$D,'Данные за 2021 г'!$B197,Реестр!#REF!,$C197,Реестр!$K:$K,\">01.01.2021\")","v":{"$error":"#REF!"}}]
[null,"Кластер Волга-Север 26 Владимир","Отказ",{"$f":"COUNTIFS(Реестр!$D:$D,'Данные за 2021 г'!$B198,Реестр!#REF!,$C198,Реестр!$K:$K,\">01.01.2021\")","v":{"$error":"#REF!"}}]
[null,"Кластер Волга-Север 26 Владимир","Согласован",{"$f":"COUNTIFS(Реестр!$D:$D,'Данные за 2021 г'!$B199,Реестр!#REF!,$C199,Реестр!$K:$K,\">01.01.2021\")","v":{"$error":"#REF!"}}]
[null,"Кластер Волга-Север 26 Владимир Итог",null,{"$f":"SUM(D194:D199)","v":{"$error":"#REF!"}}]

{"sheet":"Кто рисует","index":3,"n_rows":10,"n_cols":1,"rows_kept":10,"cut":false,"hidden":true,"merged":[]}
["Anna.Alyakritskaya@x5.ru"]
["Anastasia.Kraynova@x5.ru"]
["OlesyaS.Kiseleva@x5.ru"]
["S.Borovikova@x5.ru"]
["Elena.Ikonnikova@x5.ru"]
["Yulia.Litunovskaya@x5.ru"]
["Anastasiya.Rubleva@x5.ru"]
["Nina.Sapozhnikova@x5.ru"]
["Ang.Lobanova@x5.ru"]
["Mikhail.Darin@x5.ru"]

{"sheet":"Лист1","index":4,"n_rows":0,"n_cols":0,"rows_kept":0,"cut":false,"hidden":true,"merged":[]}

{"sheet":"Лист2","index":5,"n_rows":9,"n_cols":1,"rows_kept":9,"cut":false,"hidden":true,"merged":[]}
["Ответсвенный"]
["Pavel.Popkov@x5.ru"]
["R.Lokot@x5.ru"]
["Maryana.Lobodenko@x5.ru"]
["Ele.Makarova@x5.ru"]
["M.Shirokovskikh@x5.ru"]
["Evgeny.Galanskiy@x5.ru"]
["Bulat.Galiev@x5.ru"]
["An.Boykova@x5.ru"]

{"sheet":"Лист3","index":6,"n_rows":0,"n_cols":0,"rows_kept":0,"cut":false,"hidden":true,"merged":[]}